[Event "45th Guernsey Open 2019"]
[Site "Vale"]
[Date "2019.10.21"]
[Round "2.1"]
[White "Hebden, Mark L"]
[Black "Pleasants, Allan J"]
[Result "1-0"]
[ECO "A45"]
[WhiteElo "2427"]
[BlackElo "2019"]
[Annotator "NA"]
[PlyCount "57"]
[EventDate "2019.10.20"]
[EventCountry "GCI"]
[SourceTitle "playchess.com"]
[Source "ChessBase"]
[SourceQuality "1"]
[TimeControl "40/6000+30:2400+30"]

1. d4 {[%emt 0:00:00]} Nf6 {[%emt 0:00:00]} 2. Nc3 {[%emt 0:00:38]} g6 {[%emt 0:01:01]} 3. Bf4 {[%emt 0:02:06]} Bg7 {[%emt 0:01:29]} 4. e4 {[%emt 0:01:23]} d6 {[%emt 0:01:10]} 5. Qd2 {[%emt 0:00:15]} O-O {[%emt 0:01:52]} 6. O-O-O {[%emt 0:00:52]} Nc6 {[%emt 0:08:14]} 7. Nf3 {[%emt 0:01:18]} Bg4 {[%emt 0:04:54]} 8. Qe3 {[%emt 0:01:19]} e6 {[%emt 0:09:59]} 9. Bb5 {[%emt 0:05:40]} a6 {[%emt 0:03:01]} 10. Bxc6 {[%emt 0:00:24]} bxc6 {[%emt 0:01:07]} 11. Bh6 {[%emt 0:03:13]} Nd7 {[%emt 0:15:49]} 12. h4 {[%emt 0:02:12]} Bxf3 {[%emt 0:07:45]} 13. gxf3 {[%emt 0:01:03]} Bxh6 {[%emt 0:03:04]} 14. Qxh6 {[%emt 0:00:08]} Qf6 {[%emt 0:00:36]} 15. h5 {[%emt 0:00:49]} Qg7 {[%emt 0:04:04]} 16. Qe3 {[%emt 0:00:29]} c5 {[%emt 0:02:30]} 17. dxc5 {[%emt 0:00:31]} Nxc5 {[%emt 0:00:26]} 18. f4 {[%emt 0:00:14]} Rfb8 {[%emt 0:05:27]} 19. f5 {[%emt 0:11:30]} exf5 {[%emt 0:09:55]} 20. exf5 {[%emt 0:00:25]} Re8 {[%emt 0:00:32]} 21. Qf3 {[%emt 0:00:32]} g5 {[%emt 0:06:19]} 22. f6 {[%emt 0:04:15]} Qh6 {[%emt 0:02:28]} 23. Kb1 {[%emt 0:01:20]} Nd7 {[%emt 0:03:11]} 24. Nd5 {[%emt 0:00:30]} Ne5 {[%emt 0:00:36]} 25. Qf5 {[%emt 0:00:46]} Ra7 {[%emt 0:03:21]} 26. Rhg1 {[%emt 0:02:48]} Kh8 {[%emt 0:01:29]} 27. Rxg5 {[%emt 0:04:45]} Nf3 {[%emt 0:03:37]} 28. Rg3 {[%emt 0:03:15]} Nd4 {[%emt 0:04:48]} 29. Qg4 {[%emt 0:03:58]} 1-0

[Event "45th Guernsey Open 2019"]
[Site "Vale"]
[Date "2019.10.21"]
[Round "2.3"]
[White "Baker, Chris W"]
[Black "Heppell, Ian N"]
[Result "1/2-1/2"]
[ECO "C41"]
[WhiteElo "2245"]
[BlackElo "1995"]
[Annotator "NA"]
[PlyCount "84"]
[EventDate "2019.10.20"]
[EventCountry "GCI"]
[SourceTitle "playchess.com"]
[Source "ChessBase"]
[SourceQuality "1"]
[TimeControl "40/6000+30:2400+30"]

1. e4 {[%emt 0:00:00]} e5 {[%emt 0:00:00]} 2. Nf3 {[%emt 0:00:00]} d6 {[%emt 0:00:00]} 3. d4 {[%emt 0:00:00]} exd4 {[%emt 0:00:00]} 4. Nxd4 {[%emt 0:00:00]} Nf6 {[%emt 0:00:00]} 5. Nc3 {[%emt 0:00:05]} Be7 {[%emt 0:00:05]} 6. Bf4 {[%emt 0:00:12]} O-O {[%emt 0:00:12]} 7. Qd2 {[%emt 0:00:15]} d5 {[%emt 0:00:48]} 8. Ndb5 {[%emt 0:02:48]} Bb4 {[%emt 0:07:09]} 9. O-O-O {[%emt 0:07:17]} c6 {[%emt 0:01:50]} 10. Nc7 {[%emt 0:16:54]} Nxe4 {[%emt 0:06:30]} 11. Qd4 {[%emt 0:07:32]} Nxc3 {[%emt 0:03:02]} 12. bxc3 {[%emt 0:02:16]} Ba3+ {[%emt 0:00:24]} 13. Kb1 {[%emt 0:04:19]} Na6 {[%emt 0:01:11]} 14. Nxa8 {[%emt 0:08:07]} Qa5 {[%emt 0:07:32]} 15. Bd3 {[%emt 0:12:27]} Be6 {[%emt 0:01:27]} 16. Rhe1 {[%emt 0:08:43]} c5 {[%emt 0:06:04]} 17. Qe5 {[%emt 0:02:27]} Rxa8 {[%emt 0:06:37]} 18. Bc1 {[%emt 0:03:58]} d4 {[%emt 0:02:57]} 19. Bc4 {[%emt 0:00:42]} Nc7 {[%emt 0:09:33]} 20. Bxe6 {[%emt 0:04:19]} Nxe6 {[%emt 0:00:28]} 21. Qd5 {[%emt 0:01:40]} Bxc1 {[%emt 0:08:11]} 22. Rxc1 {[%emt 0:04:17]} Qxc3 {[%emt 0:06:06]} 23. Qxb7 {[%emt 0:01:07]} Rd8 {[%emt 0:00:24]} 24. Qb3 {[%emt 0:03:34]} Qa5 {[%emt 0:01:51]} 25. Ka1 {[%emt 0:03:16]} Qc7 {[%emt 0:04:01]} 26. g3 {[%emt 0:03:15]} c4 {[%emt 0:02:24]} 27. Qb5 {[%emt 0:01:46]} h6 {[%emt 0:02:22]} 28. f4 {[%emt 0:00:48]} c3 {[%emt 0:09:25]} 29. f5 {[%emt 0:02:23]} Nc5 {[%emt 0:02:42]} 30. Re8+ {[%emt 0:04:50]} Rxe8 {[%emt 0:00:14]} 31. Qxe8+ {[%emt 0:00:01]} Kh7 {[%emt 0:00:11]} 32. Qb5 {[%emt 0:01:06]} Qe5 {[%emt 0:02:12]} 33. Kb1 {[%emt 0:02:28]} a6 {[%emt 0:06:37]} 34. Qb4 {[%emt 0:01:20]} d3 {[%emt 0:02:19]} 35. cxd3 {[%emt 0:00:18]} Nxd3 {[%emt 0:00:14]} 36. Qxc3 {[%emt 0:00:22]} Qb5+ {[%emt 0:00:30]} 37. Qb3 {[%emt 0:01:08]} Qxb3+ {[%emt 0:00:36]} 38. axb3 {[%emt 0:00:01]} Nxc1 {[%emt 0:00:19]} 39. Kxc1 {[%emt 0:00:01]} g6 {[%emt 0:01:51]} 40. fxg6+ {[%emt 0:00:30]} Kxg6 {[%emt 0:00:53]} 41. Kd2 {[%emt 0:41:36]} Kf5 {[%emt 0:42:41]} 42. Ke3 {[%emt 0:00:00]} Ke5 {Ke4+} 1/2-1/2

[Event "45th Guernsey Open 2019"]
[Site "Vale"]
[Date "2019.10.21"]
[Round "2.5"]
[White "Hamperl, Fred"]
[Black "Bianco, Valerio"]
[Result "0-1"]
[ECO "C01"]
[WhiteElo "1995"]
[BlackElo "2088"]
[Annotator "NA RC"]
[PlyCount "118"]
[EventDate "2019.10.20"]
[EventCountry "GCI"]
[SourceTitle "playchess.com"]
[Source "ChessBase"]
[SourceQuality "1"]
[TimeControl "40/6000+30:2400+30"]

1. e4 {[%emt 0:00:00]} e6 {[%emt 0:00:00]} 2. d4 {[%emt 0:00:00]} d5 {[%emt 0:00:00]} 3. exd5 {[%emt 0:00:00]} exd5 {[%emt 0:00:00]} 4. c4 {[%emt 0:00:00]} Bb4+ {[%emt 0:00:10]} 5. Nc3 {[%emt 0:00:04]} Nf6 {[%emt 0:00:07]} 6. Bd3 {[%emt 0:00:23]} O-O {[%emt 0:00:13]} 7. Nge2 {[%emt 0:00:06]} dxc4 {[%emt 0:00:07]} 8. Bxc4 {[%emt 0:00:04]} Nc6 {[%emt 0:00:12]} 9. O-O {[%emt 0:00:40]} Bd6 {[%emt 0:00:11]} 10. f3 {[%emt 0:08:17]} h6 {[%emt 0:02:50]} 11. Be3 {[%emt 0:04:19]} a6 {[%emt 0:02:57]} 12. a3 {[%emt 0:07:26]} Bf5 {[%emt 0:06:46]} 13. b4 {[%emt 0:06:20]} Ne7 {[%emt 0:06:47]} 14. Qd2 {[%emt 0:10:13]} c6 {[%emt 0:03:45]} 15. Ng3 {[%emt 0:05:09]} Bxg3 {[%emt 0:02:42]} 16. hxg3 {[%emt 0:00:12]} Ned5 {[%emt 0:01:10]} 17. Nxd5 {[%emt 0:06:00]} Nxd5 {[%emt 0:00:43]} 18. Bf2 {[%emt 0:00:47]} Qd6 {[%emt 0:03:27]} 19. Rfe1 {[%emt 0:06:05]} Be6 {[%emt 0:11:58]} 20. Re5 {[%emt 0:21:16]} Nc7 {[%emt 0:03:56]} 21. Bd3 {[%emt 0:01:37]} Rfe8 {[%emt 0:06:20]} 22. Rae1 {[%emt 0:03:21]} f6 {[%emt 0:08:44]} 23. Rh5 {[%emt 0:08:35]} Bd5 {[%emt 0:13:30]} 24. Rxe8+ {[%emt 0:03:58]} Rxe8 {[%emt 0:00:33]} 25. Bg6 {[%emt 0:00:49]} Re6 {[%emt 0:05:29]} 26. Rh4 {[%emt 0:03:35]} Qe7 {[%emt 0:01:11]} 27. Qf4 {[%emt 0:02:31]} Rd6 {[%emt 0:05:01]} 28. Bd3 {[%emt 0:01:59]} Ne6 {[%emt 0:01:20]} 29. Qf5 {[%emt 0:00:58]} Nf8 {[%emt 0:00:52]} 30. Qg4 {[%emt 0:03:09]} Be6 {[%emt 0:01:46]} 31. Bf5 {[%emt 0:00:35]} Bxf5 {[%emt 0:00:42]} 32. Qxf5 {[%emt 0:00:04]} Qe6 {[%emt 0:00:56]} 33. Qd3 {[%emt 0:03:05]} f5 {[%emt 0:00:28]} 34. Rh5 {[%emt 0:02:32]} Rd5 {[%emt 0:00:41]} 35. Qe3 {[%emt 0:01:05]} Qxe3 {[%emt 0:01:17]} 36. Bxe3 {[%emt 0:00:02]} b5 {[%emt 0:09:01]} 37. g4 {[%emt 0:00:51]} fxg4 {[%emt 0:00:21]} 38. fxg4 {[%emt 0:00:31]} Rxh5 {[%emt 0:00:35]} 39. gxh5 {[%emt 0:00:04]} Nd7 {[%emt 0:00:57]} 40. Kf2 {[%emt 0:01:42]} Nf6 {[%emt 0:04:41]} 41. Kf3 {[%emt 0:02:29]} Nxh5 {[%emt 0:06:59]} 42. Ke4 {[%emt 0:06:57]} Nf6+ {[%emt 0:00:51]} 43. Kf5 {[%emt 0:00:54]} Kf7 {[%emt 0:00:17]} 44. Bc1 {[%emt 0:06:21]} Nd7 {[%emt 0:00:49]} 45. Bd2 {[%emt 0:06:58]} Nb6 {[%emt 0:00:19]} 46. Bc1 {[%emt 0:01:25]} Nc4 {[%emt 0:01:33]} 47. g3 {[%emt 0:03:57]} h5 {[%emt 0:01:30]} 48. Kg5 {[%emt 0:03:20]} g6 {[%emt 0:00:12]} 49. Kh6 {[%emt 0:01:47]} Kf6 {[%emt 0:00:21]} 50. Bg5+ {[%emt 0:01:02]} Kf5 {[%emt 0:00:09]} 51. Bc1 {[%emt 0:00:12]} Nd6 {[%emt 0:00:45]} 52. Bd2 {[%emt 0:02:00]} Ne4 {[%emt 0:00:50]} 53. Be1 {[%emt 0:00:07]} Nf6 {[%emt 0:00:26]} 54. Kg7 {[%emt 0:00:43]} g5 {[%emt 0:02:30]} 55. Kf7 {[%emt 0:01:35]} Ne4 {[%emt 0:09:14]} 56. Ke7 {[%emt 0:04:15]} Kg4 {[%emt 0:00:22]} 57. Kd7 {[%emt 0:00:57]} Nxg3 {[%emt 0:00:27]} 58. Kxc6 {[%emt 0:00:44]} h4 {[%emt 0:00:51]} 59. d5 {[%emt 0:01:35]} Ne4 {[%emt 0:02:22]} 0-1

[Event "45th Guernsey Open 2019"]
[Site "Vale"]
[Date "2019.10.21"]
[Round "2.6"]
[White "Rosen, Daniel B"]
[Black "Reijneveld, Ad"]
[Result "1/2-1/2"]
[ECO "B24"]
[WhiteElo "1990"]
[BlackElo "2056"]
[Annotator "NA RC"]
[PlyCount "34"]
[EventDate "2019.10.20"]
[EventCountry "GCI"]
[SourceTitle "playchess.com"]
[Source "ChessBase"]
[SourceQuality "1"]
[TimeControl "40/6000+30:2400+30"]

1. e4 {[%emt 0:00:00]} c5 {[%emt 0:00:00]} 2. Nc3 {[%emt 0:00:00]} Nc6 {[%emt 0:00:00]} 3. g3 {[%emt 0:00:00]} g6 {[%emt 0:00:00]} 4. Bg2 {[%emt 0:00:01]} Bg7 {[%emt 0:00:00]} 5. d3 {[%emt 0:00:22]} e6 {[%emt 0:00:09]} 6. Nf3 {[%emt 0:02:21]} Nge7 {[%emt 0:00:47]} 7. O-O {[%emt 0:00:49]} O-O {[%emt 0:00:11]} 8. Ne2 {[%emt 0:13:54]} d5 {[%emt 0:07:09]} 9. c3 {[%emt 0:06:57]} d4 {[%emt 0:08:21]} 10. Rb1 {[%emt 0:06:32]} a5 {[%emt 0:06:45]} 11. a4 {[%emt 0:03:33]} b6 {[%emt 0:07:51]} 12. c4 {[%emt 0:04:08]} e5 {[%emt 0:06:48]} 13. Kh1 {[%emt 0:06:14]} Ra7 {[%emt 0:08:31]} 14. Nfg1 {[%emt 0:01:45]} Be6 {[%emt 0:03:27]} 15. Bd2 {[%emt 0:05:06]} Qd7 {[%emt 0:02:41]} 16. b3 {[%emt 0:01:20]} Nc8 {[%emt 0:07:06]} 17. f3 {[%emt 0:06:33]} Nd6 {[%emt 0:00:25]} 1/2-1/2

[Event "45th Guernsey Open 2019"]
[Site "Vale"]
[Date "2019.10.21"]
[Round "2.7"]
[White "Timman, Jan H"]
[Black "White, Nigel"]
[Result "0-1"]
[ECO "A00"]
[WhiteElo "2528"]
[BlackElo "1975"]
[Annotator "RC"]
[PlyCount "80"]
[EventDate "2019.10.20"]
[EventCountry "GCI"]
[SourceTitle "playchess.com"]
[Source "ChessBase"]
[SourceQuality "1"]
[TimeControl "40/6000+30:2400+30"]

1. Nc3 {[%emt 0:00:00]} c5 {[%emt 0:00:00]} 2. Nf3 {[%emt 0:00:41]} Nf6 {[%emt 0:01:04]} 3. d4 {[%emt 0:00:46]} cxd4 {[%emt 0:01:01]} 4. Nxd4 {[%emt 0:00:05]} d6 {[%emt 0:02:58]} 5. g3 {[%emt 0:04:57]} a6 {[%emt 0:08:33]} 6. Bg2 {[%emt 0:00:56]} Qc7 {[%emt 0:03:03]} 7. O-O {[%emt 0:01:03]} e5 {[%emt 0:00:28]} 8. Nb3 {[%emt 0:01:01]} Be7 {[%emt 0:00:14]} 9. Bg5 {[%emt 0:09:19]} Nbd7 {[%emt 0:00:30]} 10. e4 {[%emt 0:02:12]} O-O {[%emt 0:00:41]} 11. a4 {[%emt 0:05:29]} b6 {[%emt 0:03:09]} 12. Be3 {[%emt 0:05:48]} Bb7 {[%emt 0:05:40]} 13. f3 {[%emt 0:04:11]} Rac8 {[%emt 0:01:47]} 14. Rf2 {[%emt 0:01:09]} Rfd8 {[%emt 0:04:16]} 15. Rd2 {[%emt 0:01:30]} Nb8 {[%emt 0:09:43]} 16. Bh3 {[%emt 0:04:51]} Nbd7 {[%emt 0:00:43]} 17. Qe2 {[%emt 0:00:34]} Qc4 {[%emt 0:03:46]} 18. Qf2 {[%emt 0:03:12]} Qc7 {[%emt 0:03:28]} 19. a5 {[%emt 0:03:16]} bxa5 {[%emt 0:03:07]} 20. Rxa5 {[%emt 0:03:37]} Rb8 {[%emt 0:05:17]} 21. Ra1 {[%emt 0:04:37]} Bc8 {[%emt 0:03:44]} 22. Bf1 {[%emt 0:00:23]} Nb6 {[%emt 0:04:12]} 23. Na5 {[%emt 0:11:27]} d5 {[%emt 0:05:09]} 24. exd5 {[%emt 0:00:14]} Nbxd5 {[%emt 0:01:16]} 25. Nxd5 {[%emt 0:07:27]} Nxd5 {[%emt 0:02:10]} 26. Nb3 {[%emt 0:00:04]} Nxe3 {[%emt 0:07:52]} 27. Qxe3 {[%emt 0:00:17]} Rb6 {[%emt 0:01:44]} 28. Kg2 {[%emt 0:02:58]} Re8 {[%emt 0:02:11]} 29. Bd3 {[%emt 0:04:36]} f5 {[%emt 0:06:01]} 30. Bc4+ {[%emt 0:03:14]} Kh8 {[%emt 0:00:48]} 31. Bd5 {[%emt 0:00:22]} h6 {[%emt 0:01:05]} 32. Ra4 {[%emt 0:03:11]} Rb4 {[%emt 0:03:54]} 33. Rxb4 {[%emt 0:02:12]} Bxb4 {[%emt 0:00:02]} 34. c3 {[%emt 0:00:06]} Be7 {[%emt 0:00:02]} 35. c4 {[%emt 0:01:40]} e4 {[%emt 0:00:26]} 36. f4 {[%emt 0:03:18]} Bb7 {[%emt 0:01:17]} 37. Qa7 {[%emt 0:04:26]} Bb4 {[%emt 0:01:29]} 38. Qxb7 {[%emt 0:01:58]} Qxb7 {[%emt 0:00:14]} 39. Bxb7 {[%emt 0:00:03]} Bxd2 {[%emt 0:00:23]} 40. Nxd2 {[%emt 0:00:03]} Rb8 {[%emt 0:00:28]} 0-1

[Event "45th Guernsey Open 2019"]
[Site "Vale"]
[Date "2019.10.21"]
[Round "2.8"]
[White "Curtis, John"]
[Black "Van Dijk, Bram"]
[Result "0-1"]
[ECO "D30"]
[WhiteElo "2292"]
[BlackElo "1982"]
[Annotator "NA"]
[PlyCount "83"]
[EventDate "2019.10.20"]
[EventCountry "GCI"]
[SourceTitle "playchess.com"]
[Source "ChessBase"]
[SourceQuality "1"]
[TimeControl "40/6000+30:2400+30"]

1. d4 {[%emt 0:00:00]} d5 {[%emt 0:00:00]} 2. Nf3 {[%emt 0:00:00]} c6 {[%emt 0:00:00]} 3. c4 {[%emt 0:00:00]} Nf6 {[%emt 0:00:07]} 4. e3 {[%emt 0:00:06]} e6 {[%emt 0:00:28]} 5. Nbd2 {[%emt 0:00:33]} Nbd7 {[%emt 0:02:43]} 6. Bd3 {[%emt 0:00:39]} Bd6 {[%emt 0:01:56]} 7. O-O {[%emt 0:00:10]} O-O {[%emt 0:00:21]} 8. e4 {[%emt 0:00:14]} dxe4 {[%emt 0:00:09]} 9. Nxe4 {[%emt 0:00:03]} Nxe4 {[%emt 0:01:19]} 10. Bxe4 {[%emt 0:00:06]} f5 {[%emt 0:02:41]} 11. Bc2 {[%emt 0:04:36]} c5 {[%emt 0:13:37]} 12. Qe2 {[%emt 0:05:46]} Qf6 {[%emt 0:05:25]} 13. Bg5 {[%emt 0:14:53]} Qg6 {[%emt 0:03:17]} 14. dxc5 {[%emt 0:02:09]} Bc7 {[%emt 0:05:44]} 15. Be7 {[%emt 0:04:01]} Re8 {[%emt 0:03:23]} 16. Bd6 {[%emt 0:00:18]} Bxd6 {[%emt 0:03:10]} 17. cxd6 {[%emt 0:00:07]} Qf6 {[%emt 0:00:36]} 18. Ba4 {[%emt 0:04:57]} e5 {[%emt 0:10:58]} 19. c5 {[%emt 0:03:03]} e4 {[%emt 0:00:43]} 20. b4 {[%emt 0:07:50]} Rf8 {[%emt 0:11:02]} 21. Nd2 {[%emt 0:05:41]} Qg6 {[%emt 0:11:37]} 22. f3 {[%emt 0:07:29]} exf3 {[%emt 0:06:00]} 23. Nxf3 {[%emt 0:00:50]} Kh8 {[%emt 0:05:52]} 24. Rfe1 {[%emt 0:01:50]} Qg4 {[%emt 0:06:05]} 25. Qd2 {[%emt 0:12:03]} Nxc5 {[%emt 0:04:13]} 26. bxc5 {[%emt 0:01:33]} Qxa4 {[%emt 0:00:12]} 27. Re7 {[%emt 0:02:01]} Bd7 {[%emt 0:01:37]} 28. Qb2 {[%emt 0:03:17]} Rg8 {[%emt 0:00:45]} 29. Ne5 {[%emt 0:06:04]} Be8 {[%emt 0:00:31]} 30. Rxb7 {[%emt 0:00:41]} h6 {[%emt 0:03:15]} 31. d7 {[%emt 0:02:14]} Qe4 {[%emt 0:04:32]} 32. dxe8=Q {[%emt 0:01:48]} Raxe8 {[%emt 0:00:23]} 33. Nf3 {[%emt 0:01:25]} Qd5 {[%emt 0:02:02]} 34. Rc1 {[%emt 0:02:30]} Rc8 {[%emt 0:00:01]} 35. Qb3 {[%emt 0:02:27]} Qe4 {[%emt 0:00:30]} 36. Rxa7 {[%emt 0:06:13]} Qf4 {[%emt 0:00:51]} 37. Qc3 {[%emt 0:00:35]} Rce8 {[%emt 0:00:31]} 38. Re1 {[%emt 0:01:17]} Re4 {[%emt 0:00:15]} 39. c6 {[%emt 0:03:49]} Rc4 {[%emt 0:00:27]} 40. Qe5 {[%emt 0:00:23]} Qg4 {[%emt 0:00:08]} 41. h3 {[%emt 0:41:25]} Qg6 {[%emt 0:40:24]} 42. Qe6 {[%emt 0:01:55]} 0-1

[Event "45th Guernsey Open 2019"]
[Site "Vale"]
[Date "2019.10.21"]
[Round "2.9"]
[White "Goris, Ton"]
[Black "Dilleigh, Stephen P"]
[Result "1/2-1/2"]
[ECO "C02"]
[WhiteElo "1913"]
[BlackElo "2037"]
[Annotator "NA"]
[PlyCount "88"]
[EventDate "2019.10.20"]
[EventCountry "GCI"]
[SourceTitle "playchess.com"]
[Source "ChessBase"]
[SourceQuality "1"]
[TimeControl "40/6000+30:2400+30"]

1. e4 e6 2. d4 {[%emt 0:00:20]} d5 {[%emt 0:00:06]} 3. e5 {[%emt 0:00:06]} c5 {[%emt 0:00:08]} 4. c3 {[%emt 0:00:08]} Qb6 {[%emt 0:00:10]} 5. Nf3 {[%emt 0:00:16]} Nc6 {[%emt 0:00:12]} 6. a3 {[%emt 0:00:29]} c4 {[%emt 0:00:13]} 7. Nbd2 {[%emt 0:00:28]} Na5 {[%emt 0:00:14]} 8. Be2 {[%emt 0:00:51]} Bd7 {[%emt 0:00:22]} 9. O-O {[%emt 0:00:15]} Ne7 {[%emt 0:00:21]} 10. Rb1 {[%emt 0:01:23]} Qc7 {[%emt 0:00:25]} 11. Re1 {[%emt 0:03:11]} Nc8 {[%emt 0:00:30]} 12. Rf1 {[%emt 0:13:15]} Nb6 {[%emt 0:01:06]} 13. Qe1 {[%emt 0:00:17]} Ba4 {[%emt 0:02:02]} 14. Bd1 {[%emt 0:00:46]} Bxd1 {[%emt 0:03:21]} 15. Qxd1 {[%emt 0:00:10]} O-O-O {[%emt 0:06:32]} 16. Ne1 {[%emt 0:03:37]} f5 {[%emt 0:06:48]} 17. b4 cxb3 {[%emt 0:00:57]} 18. Nxb3 {[%emt 0:12:12]} Nxb3 {[%emt 0:07:01]} 19. Rxb3 {[%emt 0:06:09]} Nc4 {[%emt 0:02:30]} 20. Nd3 {[%emt 0:04:04]} Kb8 {[%emt 0:07:57]} 21. Qc2 {[%emt 0:09:14]} Rc8 {[%emt 0:02:03]} 22. Nf4 {[%emt 0:06:29]} Qf7 {[%emt 0:05:49]} 23. a4 {[%emt 0:02:00]} g5 {[%emt 0:02:07]} 24. Nd3 {[%emt 0:00:42]} h6 {[%emt 0:00:51]} 25. Nb2 {[%emt 0:03:20]} Na5 {[%emt 0:04:39]} 26. Rb5 {[%emt 0:00:14]} Qc7 {[%emt 0:01:37]} 27. Nd1 {[%emt 0:03:07]} a6 {[%emt 0:03:23]} 28. Rb1 {[%emt 0:02:03]} Nc4 {[%emt 0:05:38]} 29. Qb3 {[%emt 0:01:24]} Rh7 {[%emt 0:01:08]} 30. Re1 {[%emt 0:02:19]} Qc6 {[%emt 0:03:33]} 31. Re2 {[%emt 0:01:43]} Rhc7 {[%emt 0:01:10]} 32. Rc2 {[%emt 0:01:05]} Qd7 {[%emt 0:06:32]} 33. Ra1 {[%emt 0:09:15]} Rc6 {[%emt 0:02:55]} 34. a5 {[%emt 0:05:11]} Be7 {[%emt 0:06:25]} 35. Ne3 {[%emt 0:00:38]} Nxe3 {[%emt 0:02:36]} 36. fxe3 {[%emt 0:00:32]} Qc7 {[%emt 0:01:36]} 37. Ba3 {[%emt 0:02:29]} Ka8 {[%emt 0:01:54]} 38. Bxe7 {[%emt 0:00:44]} Qxe7 {[%emt 0:00:11]} 39. Rb1 {[%emt 0:06:14]} Rc4 {[%emt 0:04:20]} 40. Rcb2 {[%emt 0:02:45]} R8c7 {[%emt 0:01:46]} 41. Rc2 {[%emt 0:42:51]} Qd7 {[%emt 0:42:37]} 42. Qa3 {[%emt 0:00:00]} Qa4 {[%emt 0:00:00]} 43. Rb3 {[%emt 0:00:00]} Qxa3 {[%emt 0:00:00]} 44. Rxa3 {[%emt 0:00:00]} R7c6 {[%emt 0:00:00]} 1/2-1/2

[Event "45th Guernsey Open 2019"]
[Site "Vale"]
[Date "2019.10.21"]
[Round "2.10"]
[White "Haisma, Henk"]
[Black "Coenen, Albert"]
[Result "1/2-1/2"]
[ECO "A00"]
[WhiteElo "1725"]
[BlackElo "1899"]
[Annotator "NA"]
[PlyCount "94"]
[EventDate "2019.10.20"]
[EventCountry "GCI"]
[SourceTitle "playchess.com"]
[Source "ChessBase"]
[SourceQuality "1"]
[TimeControl "40/6000+30:2400+30"]

1. b4 {[%emt 0:00:00]} d5 {[%emt 0:01:23]} 2. Bb2 {[%emt 0:00:00]} Bf5 {[%emt 0:00:21]} 3. e3 {[%emt 0:00:07]} e6 {[%emt 0:00:19]} 4. Nf3 {[%emt 0:00:20]} h6 {[%emt 0:02:47]} 5. c4 {[%emt 0:01:04]} Nf6 {[%emt 0:00:28]} 6. a3 {[%emt 0:00:06]} dxc4 {[%emt 0:03:09]} 7. Bxc4 {[%emt 0:00:04]} Bd6 {[%emt 0:01:28]} 8. O-O {[%emt 0:00:20]} O-O {[%emt 0:00:09]} 9. d4 {[%emt 0:01:17]} Nbd7 {[%emt 0:01:16]} 10. Nbd2 {[%emt 0:03:03]} Nb6 {[%emt 0:03:36]} 11. Bb3 {[%emt 0:04:39]} Ne4 {[%emt 0:03:30]} 12. Nc4 {[%emt 0:07:16]} Nxc4 {[%emt 0:00:30]} 13. Bxc4 {[%emt 0:03:45]} Bg4 {[%emt 0:05:33]} 14. Be2 {[%emt 0:02:46]} c6 {[%emt 0:07:07]} 15. Qc2 {[%emt 0:06:30]} Bf5 {[%emt 0:00:45]} 16. Bd3 {[%emt 0:00:24]} Ng5 {[%emt 0:00:29]} 17. Bxf5 {[%emt 0:09:07]} Nxf3+ {[%emt 0:00:10]} 18. gxf3 {[%emt 0:00:10]} Qg5+ {[%emt 0:00:53]} 19. Bg4 {[%emt 0:00:08]} h5 {[%emt 0:00:37]} 20. Qe2 {[%emt 0:06:45]} Qh4 {[%emt 0:05:29]} 21. f4 {[%emt 0:00:38]} hxg4 {[%emt 0:02:19]} 22. Kh1 {[%emt 0:04:28]} f5 {[%emt 0:07:49]} 23. Rg1 {[%emt 0:04:24]} Kf7 {[%emt 0:03:54]} 24. f3 {[%emt 0:01:15]} gxf3 {[%emt 0:00:34]} 25. Qxf3 {[%emt 0:00:12]} Rh8 {[%emt 0:01:30]} 26. Qg2 {[%emt 0:04:17]} Rag8 {[%emt 0:04:58]} 27. Qg6+ {[%emt 0:04:40]} Ke7 {[%emt 0:00:13]} 28. Qg3 {[%emt 0:05:23]} Qxg3 {[%emt 0:01:32]} 29. Rxg3 {[%emt 0:00:03]} g5 {[%emt 0:00:13]} 30. Rag1 {[%emt 0:04:49]} g4 {[%emt 0:00:13]} 31. d5 {[%emt 0:06:25]} Rh7 {[%emt 0:00:20]} 32. dxc6 {[%emt 0:00:33]} bxc6 {[%emt 0:00:08]} 33. Rc1 {[%emt 0:00:14]} Kd7 {[%emt 0:03:43]} 34. Bf6 {[%emt 0:05:32]} Rh3 {[%emt 0:01:57]} 35. Rxh3 {[%emt 0:04:32]} gxh3 {[%emt 0:00:06]} 36. Rg1 {[%emt 0:00:22]} Rxg1+ {[%emt 0:00:10]} 37. Kxg1 {[%emt 0:00:01]} c5 {[%emt 0:00:41]} 38. bxc5 {[%emt 0:06:13]} Bxc5 {[%emt 0:00:08]} 39. Bd4 {[%emt 0:00:03]} Bxa3 {[%emt 0:01:54]} 40. Bxa7 {[%emt 0:00:23]} Be7 {[%emt 0:00:10]} 41. Kf2 {[%emt 0:41:28]} Bh4+ {[%emt 0:40:06]} 42. Kf3 {[%emt 0:00:26]} Kc6 {[%emt 0:02:26]} 43. e4 {[%emt 0:01:01]} Kd6 {[%emt 0:02:01]} 44. exf5 {[%emt 0:13:54]} Bg3 45. Ke3 Bh4 46. Kf3 exf5 47. Bb6 Kd5 1/2-1/2